bitfinex/quotes_SOLUSD_20251126
["timestamp","ask_amount","ask_price","bid_price","bid_amount"]
[1764126178257,3.19036435,139.4,139.37,3.16]
[1764126178555,3.89865001,139.39,139.37,3.16]
[1764126180283,17.92909307,139.44,139.37,10.33512437]
[1764126180454,3.89865001,139.41,139.38,0.68]
[1764126181062,4.59865001,139.4,139.37,3.16]
[1764126181242,3.89865001,139.39,139.37,3.16]
[1764126181441,3.89865001,139.38,139.37,3.16]
[1764126181782,4.60865001,139.38,139.33,7.27706683]
[1764126181933,7.17421233,139.39,139.34,3.16]
[1764126181934,0.71,139.37,139.34,3.16]
[1764126182135,3.89865001,139.37,139.34,3.16]
[1764126182341,16.308864,139.39,139.35,0.71]
[1764126182654,3.89865001,139.41,139.35,4.60865001]
[1764126183143,3.89865001,139.41,139.36,0.71]
[1764126183346,3.89865001,139.41,139.37,10.3350804]
[1764126183656,4.60865001,139.41,139.37,10.3350804]
[1764126183961,4.60865001,139.41,139.37,11.0450804]
[1764126184338,4.60865001,139.41,139.38,0.71]
[1764126184541,4.60865001,139.41,139.38,7.88451786]
[1764126184838,23.48105784,139.43,139.38,7.88451786]
[1764126184839,3.89865001,139.43,139.38,7.88451786]
[1764126185043,3.89865001,139.43,139.39,0.71]
[1764126185247,3.89865001,139.43,139.4,3.16]
[1764126185446,4.60865001,139.43,139.4,3.16]
[1764126185663,4.60865001,139.43,139.4,3.87]
[1764126188262,3.89865001,139.44,139.41,0.71]
[1764126188436,4.60865001,139.45,139.41,0.71]
[1764126188857,4.60865001,139.45,139.41,7.88284953]
[1764126189059,11.77968943,139.45,139.41,7.88284953]
[1764126189263,4.60865001,139.44,139.41,0.71]
[1764126189971,3.89865001,139.42,139.4,3.16]
[1764126190175,3.89865001,139.41,139.4,3.16]
[1764126190465,3.89865001,139.46,139.41,0.71]
[1764126190646,4.60865001,139.46,139.41,0.71]
[1764126190844,20.91751401,139.46,139.41,7.88258978]
[1764126191068,3.89865001,139.46,139.41,7.88258978]
[1764126191365,110.16863574,139.5,139.43,3.89865001]
[1764126191551,3.89865001,139.49,139.44,3.16]
[1764126191751,4.60865001,139.5,139.44,7.76865001]
[1764126191955,3.89865001,139.5,139.45,0.71]
[1764126192466,20.91751401,139.5,139.45,0.71]
[1764126192853,17.018864,139.5,139.46,7.17051484]
[1764126193054,20.91751401,139.5,139.46,7.17051484]
[1764126193262,17.018864,139.5,139.46,7.88051484]
[1764126193467,20.91751401,139.5,139.46,7.88051484]
[1764126194054,3.89865001,139.49,139.46,7.88051484]
[1764126194262,24.18736263,139.5,139.46,7.88051484]
[1764126194469,28.08601264,139.5,139.46,0.71]
[1764126195150,0.71,139.49,139.44,3.16]
[1764126195354,3.89865001,139.48,139.44,3.16]
[1764126195749,0.71,139.47,139.44,3.16]
[1764126195971,0.71,139.47,139.44,3.87]
[1764126197574,7.88001758,139.47,139.44,3.87]
[1764126197785,0.71,139.46,139.44,3.16]
[1764126198350,7.8806385,139.46,139.44,3.16]
[1764126198545,0.71,139.46,139.44,3.16]
[1764126198748,4.60865001,139.48,139.44,3.87]
[1764126198976,7.16965091,139.48,139.45,0.71]
[1764126199479,0.71,139.47,139.44,3.16]
[1764126199658,0.71,139.47,139.44,3.87]
[1764126200061,0.71,139.47,139.44,3.16]
[1764126200288,4.60865001,139.47,139.44,3.16]
[1764126200460,7.17051484,139.46,139.44,3.16]
[1764126200664,7.88051484,139.46,139.44,3.16]
[1764126201866,7.88010185,139.47,139.44,3.16]
[1764126202885,7.17010185,139.47,139.44,3.16]
[1764126203060,0.71,139.46,139.44,3.16]
[1764126203790,7.87010185,139.47,139.44,3.16]
[1764126206997,4.59865001,139.46,139.41,7.88288157]
[1764126207194,4.59865001,139.46,139.42,3.16]
[1764126207378,0.7,139.45,139.42,3.16]
[1764126208463,4.59865001,139.45,139.42,3.16]
[1764126208663,7.17154331,139.44,139.42,3.16]
[1764126210084,20.90751401,139.47,139.43,0.71]
[1764126210868,0.7,139.46,139.43,0.71]
[1764126211483,7.8707286,139.46,139.43,0.71]
[1764126212863,7.1707286,139.46,139.43,0.71]
[1764126213068,7.8707286,139.46,139.43,0.71]
[1764126213816,23.47901961,139.47,139.43,0.71]
[1764126214097,11.76768942,139.49,139.43,7.88201991]
[1764126214271,110.75865001,139.51,139.44,3.89865001]
[1764126214470,107.59865001,139.51,139.44,4.60865001]
[1764126214671,3.89865001,139.5,139.45,0.71]
[1764126214965,3.89865001,139.53,139.47,3.89865001]
[1764126215183,4.59865001,139.54,139.48,3.89865001]
[1764126215582,16.308864,139.53,139.49,0.71]
[1764126215783,16.308864,139.53,139.49,7.87866678]
[1764126215995,17.008864,139.53,139.5,0.71]
[1764126216196,4.59865001,139.53,139.5,0.71]
[1764126216383,28.07446373,139.53,139.5,0.71]
[1764126216785,28.07446373,139.53,139.49,0.71]
[1764126218102,27.37446373,139.53,139.49,7.8788157]
[1764126218399,28.07446373,139.53,139.49,7.8788157]
[1764126218598,28.07446373,139.53,139.5,0.71]
[1764126219376,24.17581372,139.53,139.5,0.71]
[1764126220095,0.7,139.52,139.48,7.87948666]
[1764126220597,0.7,139.52,139.48,7.16948666]
[1764126220893,0.7,139.52,139.49,0.71]
[1764126221098,0.7,139.52,139.43,7.17159098]
[1764126221099,20.20751401,139.5,139.43,7.17159098]
[1764126221396,20.20751401,139.5,139.44,3.87]
[1764126221397,3.89865001,139.48,139.44,3.87]
[1764126221597,4.59865001,139.49,139.44,3.87]
[1764126221986,0.7,139.48,139.44,3.87]
[1764126222190,7.86958511,139.48,139.44,3.87]
[1764126223304,7.86958511,139.48,139.45,0.71]
[1764126223483,7.86958511,139.48,139.44,11.04149622]
[1764126223685,7.86958511,139.48,139.45,0.71]
[1764126224604,7.86958511,139.48,139.44,11.04149622]
[1764126225699,7.86958511,139.48,139.45,0.71]
[1764126227903,7.16958511,139.48,139.45,0.71]
[1764126228103,16.308864,139.5,139.46,3.89865001]
[1764126228504,16.308864,139.5,139.47,0.71]
[1764126230605,23.47737099,139.5,139.47,0.71]
[1764126231909,17.91842279,139.53,139.47,0.71]
[1764126231910,12.16994492,139.55,139.47,0.71]
[1764126232206,16.308864,139.53,139.48,7.05865001]
[1764126232409,7.16743119,139.52,139.48,3.16]
[1764126232599,7.86743119,139.52,139.48,3.87]
[1764126234696,7.86743119,139.52,139.48,3.16]
[1764126234903,7.86743119,139.52,139.49,0.68]
[1764126235216,7.86743119,139.52,139.48,14.90801849]
[1764126236203,7.86743119,139.52,139.48,11.00936848]
[1764126236405,7.86743119,139.52,139.48,14.90801849]
[1764126236608,7.86743119,139.52,139.48,14.22801849]
[1764126236803,7.86743119,139.52,139.49,0.68]
[1764126237115,23.47591001,139.53,139.49,11.74753691]
[1764126237312,24.19591001,139.53,139.5,0.68]
[1764126241202,3.21024613,139.52,139.47,3.84]
[1764126241406,2.49024613,139.51,139.47,3.84]
[1764126241719,3.15024613,139.51,139.47,3.84]
[1764126242215,7.82845878,139.5,139.47,3.16]
[1764126242418,7.82845878,139.5,139.46,3.16]
[1764126242596,3.15024613,139.49,139.46,3.16]
[1764126242799,3.15024613,139.49,139.45,3.16]
[1764126242999,0.66,139.48,139.45,3.81]
[1764126243201,3.15024613,139.49,139.46,0.65]
[1764126244419,7.16948666,139.48,139.46,0.65]
[1764126244919,7.16948666,139.48,139.45,3.16]
[1764126245099,7.82948666,139.48,139.45,3.81]
[1764126246123,7.82948666,139.48,139.45,3.16]
[1764126246626,7.82948666,139.48,139.45,3.81]
[1764126246825,16.308864,139.45,139.38,2.49024613]
[1764126246994,2.49024613,139.42,139.36,0.65]
[1764126247199,2.49024613,139.42,139.37,3.16]
[1764126247200,3.15024613,139.42,139.37,3.16]
[1764126247711,2.49024613,139.42,139.38,0.65]
[1764126247909,0.66,139.41,139.38,0.65]
[1764126248101,7.17308657,139.41,139.38,0.65]
[1764126248504,10.3233327,139.41,139.37,3.16]
[1764126248707,10.3233327,139.41,139.38,0.65]
[1764126249203,7.17308657,139.41,139.38,0.65]
[1764126253624,7.83308657,139.41,139.38,0.65]
[1764126253802,10.3233327,139.41,139.38,0.65]
[1764126254328,0.66,139.4,139.37,3.81]
[1764126255412,0.66,139.4,139.37,3.16]
[1764126255613,0.66,139.4,139.37,3.81]
[1764126255922,9.6633327,139.41,139.37,3.16]
[1764126256126,7.17308657,139.41,139.38,0.65]
[1764126258506,7.83308657,139.41,139.38,0.65]
[1764126259508,7.17308657,139.41,139.38,0.65]
[1764126259709,10.3233327,139.41,139.38,0.65]
[1764126261838,9.6633327,139.41,139.38,0.65]
[1764126262412,10.3233327,139.41,139.38,0.65]
[1764126264433,10.3533327,139.41,139.38,0.65]
[1764126264628,2.49024613,139.4,139.38,0.65]
[1764126270325,2.49024613,139.4,139.37,10.33512964]
[1764126270524,9.66385348,139.4,139.38,0.7]
[1764126273152,2.49024613,139.41,139.38,0.7]
[1764126273949,3.18024613,139.41,139.38,0.7]
[1764126274541,35.84458829,139.5,139.38,10.36479549]
[1764126274542,103.0,139.46,139.38,10.36479549]
[1764126274744,110.86064168,139.46,139.38,10.36479549]
[1764126274923,110.86064168,139.46,139.39,0.7]
[1764126274924,2.49024613,139.44,139.39,0.7]
[1764126276047,9.66181825,139.44,139.4,7.17360114]
[1764126276355,9.66181825,139.44,139.41,3.16]
[1764126276644,9.66181825,139.44,139.41,3.86]
[1764126276943,9.66181825,139.44,139.42,0.7]
[1764126277532,2.49024613,139.44,139.42,0.7]
[1764126280752,7.17122168,139.45,139.42,0.7]
[1764126280947,2.49024613,139.44,139.42,0.7]
[1764126282259,9.66146781,139.45,139.42,0.7]
[1764126284045,103.0,139.46,139.42,7.87238264]
[1764126284440,103.0,139.46,139.43,0.7]
[1764126285272,103.0,139.46,139.43,7.87175059]
[1764126285849,103.0,139.46,139.44,0.7]
[1764126287370,103.0,139.46,139.44,7.87148157]
[1764126287676,110.17062491,139.46,139.41,3.86]
[1764126287853,110.17062491,139.46,139.36,51.99999999]
[1764126287854,2.49024613,139.42,139.37,7.17514529]
[1764126288044,2.49024613,139.41,139.38,0.7]
[1764126288244,2.49024613,139.41,139.38,3.86]
[1764126288682,3.18024613,139.41,139.38,3.86]
[1764126289387,3.18024613,139.41,139.38,11.03457831]
[1764126289546,3.18024613,139.41,139.38,3.86]
[1764126289747,2.49024613,139.4,139.38,3.86]
[1764126291441,0.69,139.41,139.38,11.03455862]
[1764126291648,2.49024613,139.41,139.38,11.03455862]
[1764126293073,3.18024613,139.42,139.39,0.7]
[1764126293370,3.18024613,139.42,139.38,11.03455862]
[1764126294248,3.18024613,139.42,139.38,10.33455862]
[1764126294485,10.35282558,139.42,139.39,0.72]
[1764126296649,3.18024613,139.42,139.39,0.72]
[1764126296849,10.35283596,139.42,139.39,0.72]
[1764126297775,9.66283596,139.42,139.38,10.33455862]
[1764126297978,0.67,139.41,139.38,11.05455862]
[1764126298178,9.66283596,139.42,139.38,11.05455862]
[1764126298481,10.33283596,139.42,139.39,0.72]
[1764126299284,0.67,139.42,139.39,0.72]
[1764126299449,3.16024613,139.42,139.39,0.72]
[1764126300276,10.33293313,139.42,139.39,0.72]
[1764126300576,11.73999228,139.42,139.39,0.72]
[1764126301180,3.89730528,139.41,139.38,3.16]
[1764126301355,3.89730528,139.41,139.39,0.66]
[1764126304665,11.06999228,139.42,139.39,0.66]
[1764126305079,16.308864,139.49,139.39,11.73134432]
[1764126305261,3.89730528,139.45,139.39,11.73134432]
[1764126305462,3.89730528,139.45,139.4,0.66]
[1764126305665,119.308864,139.46,139.4,4.55730528]
[1764126306092,119.308864,139.46,139.41,0.66]
[1764126306396,123.88616928,139.46,139.42,3.16]
[1764126306567,123.20616928,139.46,139.42,3.16]
[1764126306766,3.89730528,139.48,139.43,0.66]
[1764126306967,118.67136918,139.52,139.44,11.06884859]
[1764126306968,103.68,139.52,139.44,11.06884859]
[1764126307197,3.89730528,139.53,139.47,3.89730528]
[1764126307481,3.89730528,139.52,139.48,3.16]
[1764126307713,3.89730528,139.52,139.49,3.16]
[1764126307899,3.89730528,139.52,139.5,0.66]
[1764126308409,3.89730528,139.52,139.49,3.16]
[1764126308410,20.88616928,139.51,139.46,3.16]
[1764126308709,3.89730528,139.49,139.47,0.66]
[1764126309796,11.06641849,139.49,139.47,0.66]
[1764126312177,11.74641849,139.49,139.46,3.16]
[1764126312679,7.84911321,139.49,139.46,3.82]
[1764126312882,11.06641849,139.49,139.46,3.16]
[1764126313079,4.57730528,139.48,139.46,3.16]
[1764126313282,3.89730528,139.48,139.46,3.16]
[1764126313684,16.308864,139.46,139.41,0.66]
[1764126313907,3.89730528,139.44,139.42,3.16]
[1764126314197,20.20616928,139.45,139.42,3.82]
[1764126315092,11.06884859,139.44,139.42,3.82]
[1764126316600,4.57730528,139.43,139.39,0.66]
[1764126316803,4.57730528,139.43,139.39,3.16]
[1764126316804,3.89730528,139.41,139.39,3.16]
[1764126317106,3.89730528,139.42,139.4,0.66]
[1764126318390,11.07019762,139.42,139.4,0.66]
[1764126319490,16.308864,139.44,139.4,0.66]
[1764126320001,3.89730528,139.44,139.4,7.83348961]
[1764126320203,3.89730528,139.41,139.39,3.82]
[1764126320502,11.07017443,139.42,139.39,3.82]
[1764126320703,11.07017443,139.42,139.4,0.66]
[1764126320882,3.89730528,139.41,139.4,0.66]
[1764126324084,11.07017443,139.42,139.4,0.66]
[1764126325702,3.89730528,139.41,139.39,3.16]
[1764126325905,3.89730528,139.41,139.39,3.86]
[1764126326711,11.07076279,139.41,139.39,3.86]
[1764126327107,11.07076279,139.41,139.38,0.7]
[1764126327108,23.48232151,139.41,139.38,0.7]
[1764126327405,23.48232151,139.41,139.34,11.07378229]
[1764126327406,11.07076279,139.41,139.39,0.7]
[1764126330016,3.89730528,139.4,139.37,0.7]
[1764126331605,7.17411579,139.39,139.37,0.7]
[1764126332005,3.89730528,139.4,139.37,0.7]
[1764126332006,7.17380054,139.4,139.37,0.7]
[1764126332406,11.07110582,139.4,139.37,0.7]
[1764126338926,11.07039185,139.41,139.37,0.7]
[1764126339118,11.79039185,139.41,139.37,0.7]
[1764126340602,3.89730528,139.4,139.37,0.7]
[1764126340803,11.07121531,139.4,139.37,0.7]
[1764126341206,11.07121531,139.4,139.36,3.16]
[1764126341411,11.79121531,139.4,139.37,0.7]
[1764126341821,11.07121531,139.4,139.37,0.7]
[1764126346233,3.89730528,139.41,139.37,7.87510089]
[1764126346533,7.17274835,139.42,139.37,7.87510089]
[1764126346733,7.17274835,139.42,139.38,0.7]
[1764126347025,11.07005363,139.42,139.38,0.7]
[1764126347209,4.61730528,139.41,139.38,0.7]
[1764126348343,7.17360114,139.4,139.38,0.7]
[1764126350639,11.07090642,139.4,139.36,11.03549117]
[1764126350939,11.79090642,139.4,139.37,0.7]
[1764126353216,0.72,139.39,139.36,3.16]
[1764126353417,0.72,139.39,139.36,3.87]
[1764126354245,11.07090642,139.4,139.36,3.87]
[1764126354417,11.76090642,139.4,139.36,3.16]
[1764126354619,11.76090642,139.4,139.37,0.71]
[1764126355619,3.89730528,139.39,139.37,0.71]
[1764126356458,7.86360114,139.4,139.37,0.71]
[1764126356613,11.07182078,139.39,139.37,0.71]
[1764126357423,11.07182078,139.39,139.36,3.16]
[1764126357735,11.76182078,139.39,139.36,3.87]
[1764126357910,11.07182078,139.39,139.36,3.16]
[1764126358115,11.07182078,139.39,139.37,0.71]
[1764126359047,7.1745155,139.39,139.37,0.71]
[1764126361650,7.1745155,139.39,139.33,0.78]
[1764126361651,3.14505136,139.38,139.33,0.78]
[1764126361820,2.49505136,139.37,139.33,3.94]
[1764126362027,2.49505136,139.36,139.33,3.94]
[1764126362841,3.14505136,139.37,139.33,3.94]
[1764126363036,16.308864,139.4,139.34,0.68]
[1764126363226,18.80391536,139.4,139.34,3.17505136]
[1764126363428,18.80391536,139.4,139.34,0.68]
[1764126363633,19.45391536,139.4,139.34,0.68]
[1764126363841,2.49505136,139.39,139.34,0.68]
[1764126364222,10.31916715,139.39,139.34,7.85655003]
[1764126364444,10.31916715,139.39,139.35,0.68]
[1764126365232,7.17411579,139.39,139.35,7.85610557]
[1764126365650,7.82411579,139.39,139.36,0.68]
[1764126365850,0.65,139.38,139.33,3.94]
[1764126366039,3.14505136,139.38,139.34,0.68]
[1764126366347,2.49505136,139.37,139.34,0.68]
[1764126367130,7.82566016,139.36,139.33,3.26]
[1764126367430,7.82566016,139.36,139.33,3.94]
[1764126367840,7.17566016,139.36,139.33,3.94]
[1764126368358,7.17566016,139.36,139.34,0.68]
[1764126370266,14.35311589,139.36,139.34,0.68]
[1764126379667,7.17745573,139.36,139.34,0.68]
[1764126379869,7.17528101,139.37,139.34,0.68]
[1764126380168,14.35273674,139.37,139.34,0.68]
[1764126380380,15.06273674,139.37,139.34,0.68]
[1764126380546,7.88528101,139.37,139.34,0.68]
[1764126380747,10.43710501,139.36,139.34,0.68]
[1764126381147,0.71,139.35,139.33,0.1]
[1764126381474,0.71,139.35,139.33,3.26]
[1764126381757,20.10823735,139.36,139.33,3.26]
[1764126382061,20.10823735,139.36,139.33,3.95]
[1764126382062,20.81823735,139.36,139.33,3.95]
[1764126382263,17.61318599,139.36,139.33,3.26]
[1764126382466,17.61318599,139.36,139.34,0.69]
[1764126383278,0.71,139.35,139.33,3.26]
[1764126383657,20.76823735,139.36,139.33,3.26]
[1764126383977,20.76823735,139.36,139.33,3.94]
[1764126384875,18.27318599,139.36,139.33,3.94]
[1764126385575,7.83608098,139.36,139.33,3.94]
[1764126386248,0.66,139.35,139.33,3.26]
[1764126386675,7.17608098,139.36,139.33,3.26]
[1764126386877,7.83608098,139.36,139.33,3.94]
[1764126388677,10.33113234,139.36,139.33,3.94]
[1764126388854,10.33113234,139.36,139.33,3.26]
[1764126389054,27.61614131,139.36,139.33,3.26]
[1764126389377,0.66,139.35,139.33,3.26]
[1764126390178,27.61614131,139.36,139.33,3.26]
[1764126390376,28.27614131,139.36,139.33,3.94]
[1764126390558,28.27614131,139.36,139.34,0.68]
[1764126390559,7.17608098,139.36,139.34,0.68]
[1764126392273,2.49505136,139.38,139.34,0.68]
[1764126392678,2.49505136,139.37,139.34,0.68]
[1764126392881,3.15505136,139.37,139.34,0.68]
[1764126393075,3.15505136,139.36,139.33,3.26]
[1764126393669,0.66,139.35,139.33,3.26]
[1764126394182,7.83640212,139.35,139.33,3.26]
[1764126394581,9.67145348,139.35,139.33,3.26]
[1764126394770,10.33145348,139.35,139.33,3.26]
[1764126394971,17.5100316,139.35,139.33,3.26]
[1764126398087,15.01498024,139.35,139.33,3.26]
[1764126398495,17.5100316,139.35,139.33,3.26]
[1764126399289,16.8500316,139.35,139.33,3.26]
[1764126399480,17.5100316,139.35,139.33,3.26]
[1764126400291,16.8500316,139.35,139.33,3.26]
[1764126400481,16.8500316,139.35,139.33,3.94]
[1764126401395,17.5100316,139.35,139.33,3.26]
[1764126403100,16.8500316,139.35,139.33,3.94]
[1764126404301,17.5100316,139.35,139.33,3.26]
[1764126404685,17.5100316,139.35,139.33,3.089]
[1764126405293,16.8500316,139.35,139.33,3.089]
[1764126405497,16.8500316,139.35,139.33,3.769]
[1764126405688,17.5100316,139.35,139.33,3.089]
[1764126408304,10.33145348,139.35,139.33,3.089]
[1764126408892,14.35526823,139.34,139.33,3.769]
[1764126410306,14.35526823,139.34,139.33,0.68]
[1764126412404,14.35526823,139.34,139.3,10.33857812]
[1764126412606,14.35526823,139.34,139.32,0.68]
[1764126417216,2.49505136,139.36,139.32,0.68]
[1764126417517,12.83368047,139.36,139.32,0.68]
[1764126417893,2.49505136,139.36,139.32,0.68]
[1764126418092,3.16,139.35,139.32,0.68]
[1764126418306,10.33622276,139.35,139.32,7.85771163]
[1764126418619,10.33622276,139.35,139.32,0.68]
[1764126418915,10.33622276,139.35,139.33,0.66]
[1764126419912,7.17622276,139.35,139.33,0.66]
[1764126420612,20.00716134,139.36,139.33,0.66]
[1764126421915,20.67716134,139.36,139.33,0.66]
[1764126422101,2.49505136,139.35,139.33,0.66]
[1764126422717,3.90092931,139.35,139.33,0.66]
[1764126423889,11.07720927,139.35,139.33,0.66]
[1764126425310,106.90092931,139.38,139.34,3.16]
[1764126425702,106.90092931,139.38,139.35,0.69]
[1764126425900,110.83714899,139.38,139.35,0.69]
[1764126426100,7.84327691,139.41,139.35,7.86608453]
[1764126426415,3.90092931,139.4,139.36,0.69]
[1764126426614,23.48150766,139.42,139.36,0.69]
[1764126426922,3.90092931,139.4,139.36,0.69]
[1764126427220,7.84264366,139.41,139.36,0.69]
[1764126427411,3.90092931,139.4,139.36,0.69]
[1764126427909,11.74463448,139.4,139.36,0.69]
[1764126428126,7.17370517,139.4,139.36,7.86563615]
[1764126428297,11.07463448,139.4,139.37,0.69]
[1764126428726,11.74463448,139.4,139.37,0.69]
[1764126429218,11.07463448,139.4,139.37,0.69]
[1764126430511,3.90092931,139.4,139.37,0.69]
[1764126430717,3.90092931,139.4,139.37,7.86512431]
[1764126431229,3.90092931,139.4,139.38,0.69]
[1764126433026,11.07456892,139.4,139.38,0.69]
[1764126436512,3.90092931,139.4,139.38,0.69]
[1764126437834,11.07481799,139.4,139.38,0.69]
[1764126443013,4.57092931,139.39,139.34,0.69]
[1764126443337,3.90092931,139.36,139.34,0.69]
[1764126444824,11.07655249,139.37,139.34,0.69]
[1764126445342,11.75655249,139.37,139.34,0.69]
[1764126445541,4.58092931,139.36,139.32,11.00755339]
[1764126445741,4.58092931,139.36,139.33,0.67]
[1764126446435,3.90092931,139.36,139.33,0.67]
[1764126447143,11.07679935,139.36,139.33,0.67]
[1764126450532,11.75679935,139.36,139.33,0.67]
[1764126450746,3.90092931,139.35,139.33,0.67]
[1764126451044,4.58092931,139.35,139.33,0.67]
[1764126451346,4.58092931,139.35,139.32,3.83]
[1764126451641,4.58092931,139.35,139.32,3.16]
[1764126451845,4.58092931,139.35,139.32,3.83]
[1764126452741,3.90092931,139.33,139.32,3.16]
[1764126452939,3.90092931,139.33,139.29,0.1]
[1764126453139,4.58092931,139.32,139.29,0.77]
[1764126453945,3.90092931,139.3,139.29,0.1]
[1764126454325,4.58092931,139.3,139.29,0.1]
[1764126454544,11.7596802,139.3,139.29,0.1]
[1764126461763,11.0796802,139.3,139.29,0.1]
[1764126462577,16.09010156,139.31,139.29,0.77]
[1764126462775,103.68,139.36,139.3,3.16]
[1764126462776,3.90092931,139.34,139.3,3.16]
[1764126463372,3.90092931,139.34,139.31,0.67]
[1764126464570,3.90092931,139.34,139.31,7.84816847]
[1764126464864,6.77728209,139.35,139.31,7.84816847]
[1764126465043,6.77728209,139.35,139.32,0.67]
[1764126465457,3.90092931,139.35,139.32,0.67]
[1764126467957,11.07711316,139.35,139.32,0.67]
[1764126468163,3.90092931,139.33,139.3,3.16]
[1764126468343,3.90092931,139.33,139.31,0.67]
[1764126468540,4.58092931,139.32,139.3,3.16]
[1764126468745,3.90092931,139.31,139.29,0.1]
[1764126469045,3.90092931,139.3,139.29,0.1]
[1764126469245,3.16,139.31,139.3,0.67]
[1764126469660,11.07819135,139.33,139.3,0.67]
[1764126469859,11.07819135,139.32,139.3,0.67]
[1764126470066,14.97912066,139.32,139.3,0.67]
[1764126470375,14.97912066,139.32,139.29,0.1]
[1764126470666,14.97912066,139.32,139.29,0.77]
[1764126471667,22.15692219,139.32,139.29,0.77]
[1764126471869,3.90092931,139.31,139.29,0.77]
[1764126474172,13.46087423,139.3,139.29,0.1]
[1764126475071,20.63962512,139.3,139.29,0.1]
[1764126475778,19.98962512,139.3,139.29,0.1]
[1764126477659,23.48672832,139.32,139.29,0.8]
[1764126477865,27.38765763,139.32,139.29,0.8]
[1764126478053,30.64765763,139.32,139.29,0.8]
[1764126480284,3.26,139.32,139.29,0.8]
[1764126480572,3.26,139.32,139.29,7.9792406]
[1764126480962,3.26,139.32,139.3,0.7]
[1764126482279,3.26,139.32,139.3,7.8786521]
[1764126482488,103.0,139.36,139.3,11.0386521]
[1764126482666,18.80613147,139.32,139.29,0.76]
[1764126482855,2.49726747,139.31,139.29,0.76]
[1764126483263,2.49726747,139.31,139.29,0.1]
[1764126484383,9.67555266,139.31,139.29,0.1]
[1764126484673,2.49726747,139.31,139.29,0.76]
[1764126486158,9.67564382,139.31,139.29,0.76]
[1764126486553,10.39564382,139.31,139.29,0.1]
[1764126487152,9.67564382,139.31,139.29,0.1]
[1764126489279,9.67564382,139.31,139.29,0.76]
[1764126489658,103.0,139.35,139.29,0.76]
[1764126489659,2.49726747,139.33,139.29,0.76]
[1764126489857,9.7774669,139.33,139.29,0.76]
[1764126490181,2.49726747,139.32,139.29,0.76]
[1764126490557,2.49726747,139.32,139.29,7.93921369]
[1764126490970,2.49726747,139.32,139.3,0.66]
[1764126491769,10.39501384,139.32,139.29,7.93921369]
[1764126491971,2.49726747,139.31,139.29,0.76]
[1764126494087,10.39501384,139.32,139.29,0.76]
[1764126496087,9.67501384,139.32,139.29,0.76]
[1764126496687,0.72,139.31,139.29,0.1]
[1764126497566,10.39501384,139.32,139.29,0.76]
[1764126499388,23.58807769,139.34,139.29,7.93921006]
[1764126499585,3.21726747,139.33,139.29,0.76]
[1764126499763,2.49726747,139.32,139.29,0.76]
[1764126499962,3.21726747,139.32,139.29,0.76]
[1764126501796,10.39517972,139.32,139.29,0.76]
[1764126506581,2.49726747,139.32,139.29,0.76]
[1764126507098,0.68,139.31,139.29,0.1]
[1764126507675,10.35524025,139.32,139.29,0.77]
[1764126508296,9.67524025,139.32,139.29,0.1]
[1764126508470,18.80613147,139.3,139.29,0.1]
[1764126509600,25.98488236,139.3,139.29,0.1]
[1764126509986,26.66488236,139.3,139.29,0.1]
[1764126510493,29.92488236,139.3,139.29,0.1]
[1764126511177,29.24488236,139.3,139.29,0.1]
[1764126511378,25.98488236,139.3,139.29,0.1]
[1764126514803,18.80613147,139.3,139.29,0.1]
[1764126514987,2.49726747,139.31,139.29,0.77]
[1764126516099,2.49726747,139.32,139.29,0.77]
[1764126516483,9.67509855,139.32,139.29,0.77]